Workbook

Sheet Kop.
C3: Emertimi dhe Forma ligjore | F3: AR EUROPROJECTS
C4: NIPT -i | F4: K66725001V
C5: Adresa e Selise | F5: 13 DHJETORI
H6: SHKODER
C7: Data e krijimit
C8: Nr. i Regjistrit Tregetar
C10: Veprimtaria Kryesore | F10: INVESTITOR NE NDERTIME
F11: CIVILE
B25: P A S Q Y R A T F I N A N C I A R E
C26: ( Ne zbarim te Standartit Kombetar te Kontabilitetit Nr.2 dhe
C27: Ligjit Nr. 9228 Date 29.04.2004 Per Kontabilitetin dhe Pasqyrat Financiare )
F30: Viti 2010
C48: Pasqyra Financiare jane individuale | H48: Po
C49: Pasqyra Financiare jane te konsoliduara
C50: Pasqyra Financiare jane te shprehura ne | H50: Ne leke
C51: Pasqyra Financiare jane te rumbullakosura ne | H51: Jo
C53: Periudha Kontabel e Pasqyrave Financiare | G53: Nga | H53: 01.01.2010
G54: Deri | H54: 31.12.2010
C56: Data e mbylljes se Pasqyrave Financiare

Sheet Aktivet
B2: Pasqyrat Financiare te Vitit 2010
B4: Nr | C4: A K T I V E T | F4: Shenime | G4: Periudha | H4: Periudha
G5: Raportuese | H5: Para ardhese
B6: I | C6: A K T I V E T A F A T S H K U R T R A
C7: 1 | D7: Aktivet monetare | G7: =SUM(G8:G10) -> 5427165.32 | H7: =SUM(H8:H10) -> 2618716.73
D8: > | E8: Banka | G8: =124929.31+3562075.14 -> 3687004.45 | H8: =539678.4+847391.7 -> 1387070.1
D9: > | E9: Arka | G9: =1204063.87+536097 -> 1740160.87 | H9: =1169410.63+62236 -> 1231646.63
D10: > | E10: Vlera te tjera Arke
C11: 2 | D11: Derivative dhe aktive te mbajtura per tregtim | G11: 0 | H11: 0
C12: 3 | D12: Aktive te tjera financiare afatshkurtra | G12: =SUM(G13:G19) -> 86599028.29 | H12: =SUM(H13:H19) -> 50658434
D13: > | E13: Kliente per mallra,produkte e sherbime | H13: 8065020
D14: > | E14: Debitore,Kreditore te tjere | G14: =60899054.29+772447-214980+201231 -> 61657752.29 | H14: =36574434+772447 -> 37346881
D15: > | E15: Tatim mbi fitimin | G15: 5646533 | H15: =4474086+772447 -> 5246533
D16: > | E16: Tvsh | G16: 19294743
D17: > | E17: Te drejta e detyrime ndaj ortakeve
D18: >
D19: >
C20: 4 | D20: Inventari | G20: =SUM(G21:G27) -> 511799870.1 | H20: =SUM(H21:H27) -> 395410127.3
D21: > | E21: Lendet e para | G21: =53812533.84+33173296.28 -> 86985830.12
D22: > | E22: Inventari Imet
D23: > | E23: Prodhim ne proces | G23: 424814040 | H23: 395410127.3
D24: > | E24: Produkte te gatshme
D25: > | E25: Mallra per rishitje
D26: > | E26: Parapagesa per furnizime
D27: >
C28: 5 | D28: Aktive biologjike afatshkurtra | G28: 0 | H28: 0
C29: 6 | D29: Aktive afatshkurtra te mbajtura per rishitje | G29: 0 | H29: 0
C30: 7 | D30: Parapagime dhe shpenzime te shtyra | G30: =SUM(G31:G34) -> 0 | H30: =SUM(H31:H34) -> 0
D31: > | E31: Fitime te shtyra
D32: > | E32: Shpenzime te periudhave te ardhshme
D33: >
B34: II | D34: >
C35: A K T I V E T A F A T G J A T A | G35: =G37+G42+G43+G44+G45+G36 -> 3530748.2 | H35: =H37+H42+H43+H44+H45+H36 -> 3407031.2
C36: 1 | D36: Investimet financiare afatgjata
C37: 2 | D37: Aktive afatgjata materiale | G37: =SUM(G38:G41) -> 3530748.2 | H37: =SUM(H38:H41) -> 3407031.2
D38: > | E38: Toka
D39: > | E39: Ndertesa
D40: > | E40: Instalime teknike, Makineri dhe paisje
D41: > | E41: Aktive tjera afat gjata materiale | G41: ='Pasq.per AAM 1'!G49 -> 3530748.2 | H41: =88517.2+1233936+3345010-1260432 -> 3407031.2
C42: 3 | D42: Ativet biologjike afatgjata | G42: 0 | H42: 0
C43: 4 | D43: Aktive afatgjata jo materiale
C44: 5 | D44: Kapitali aksioner i pa paguar | G44: 0 | H44: 0
C45: 6 | D45: Aktive te tjera afatgjata | G45: 0 | H45: 0
C46: T O T A L I A K T I V E V E ( I + II ) | G46: =G7+G11+G12+G20+G28+G29+G30+G35 -> 607356811.9 | H46: =H7+H11+H12+H20+H28+H29+H30+H35 -> 452094309.3
G49: =G46-Pasivet!G44 -> 0.3600000143 | H49: =H46-Pasivet!H44 -> 0

Sheet Pasivet
B2: Pasqyrat Financiare te Vitit 2010
B4: Nr | C4: PASIVET DHE KAPITALI | F4: Shenime | G4: Periudha | H4: Periudha
G5: Raportuese | H5: Para ardhese
B6: I | C6: P A S I V E T A F A T S H K U R T R A | G6: =G7+G8+G11+G23+G24 -> 834383528.9 | H6: 622126421.3
C7: 1 | D7: Derivativet | G7: 0 | H7: 0
C8: 2 | D8: Huamarjet | G8: =SUM(G9:G10) -> 638279178.2 | H8: 387767596.8
D9: > | E9: Overdraftet bankare | G9: =638279178.23 -> 638279178.2 | H9: 387767596.8
D10: > | E10: Huamarrje afat shkuatra
C11: 3 | D11: Huat dhe parapagimet | G11: =SUM(G12:G22) -> 196104350.7 | H11: 234358824.5
D12: > | E12: Te pagueshme ndaj furnitoreve | H12: 36442900.27
D13: > | E13: Te pagueshme ndaj punonjesve | G13: 823675.73 | H13: 1263225.8
D14: > | E14: Detyrime per Sigurime Shoq.Shend. | H14: 149502
D15: > | E15: Detyrime tatimore per TAP-in | G15: 39999 | H15: 185130
D16: > | E16: Detyrime tatimore per Tatim Fitimin
D17: > | E17: Detyrime tatimore per Tvsh-ne
D18: > | E18: Detyrime tatimore per Tatimin ne Burim(qera) | G18: 7065119.38 | H18: 7754903.38
D19: > | E19: Te drejta e detyrime ndaj ortakeve | G19: =183980570.76-2734800 -> 181245770.8 | H19: 163167962.8
D20: > | E20: Dividente per tu paguar
D21: > | E21: Debitore dhe Kreditore te tjere | G21: =25395200.27-18465414.46 -> 6929785.81 | H21: 25395200.27
D22: > | E22: Te tjera
C23: 4 | D23: Grantet dhe te ardhurat e shtyra
C24: 5 | D24: Provizionet afatshkurtra
B25: II | C25: P A S I V E T A F A T G J A T A | G25: =+G26+G29+G30+G31 -> 0 | H25: 0
C26: 1 | D26: Huat afatgjata | G26: =SUM(G27:G28) -> 0 | H26: 0
D27: > | E27: Hua,bono dhe detyrime nga qeraja financiare
D28: > | E28: Bono te konvertueshme
C29: 2 | D29: Huamarje te tjera afatgjata
C30: 3 | D30: Grantet dhe te ardhurat e shtyra
C31: 4 | D31: Provizionet afatgjata | G31: 0 | H31: 0
B32: III | C32: T O T A L I P A S I V E V E ( I+II ) | G32: =G6+G25 -> 834383528.9 | H32: 622126421.3
C33: K A P I T A L I | G33: =SUM(G34:G43) -> -227026717.3 | H33: -170032112
C34: 1 | D34: Aksionet e pakices (PF te konsoliduara)
C35: 2 | D35: Kapitali aksionereve te shoq.meme (PF te kons.)
C36: 3 | D36: Kapitali aksionar | G36: 100000 | H36: 100000
C37: 4 | D37: Primi aksionit
C38: 5 | D38: Njesite ose aksionet e thesarit (Negative)
C39: 6 | D39: Rezervat statutore
C40: 7 | D40: Rezervat ligjore
C41: 8 | D41: Rezervat e tjera
C42: 9 | D42: Fitimet (humbjet)e pa shperndara | G42: =H42+H43 -> -170132112 | H42: -124724989.8
C43: 10 | D43: Fitimi (Humbja) e vitit financiar | G43: =Rez.1!F28 -> -56994605.34 | H43: -45407122.24
C44: TOTALI PASIVEVE DHE KAPITALIT (I+II+III) | G44: =G32+G33 -> 607356811.6 | H44: 452094309.3
G46: =G44-Aktivet!G46 -> -0.3600000143 | H46: =H44-Aktivet!H46 -> 0

Sheet Rez.1
B2: Pasqyra e te Ardhurave dhe Shpenzimeve 2010
B3: ( Bazuar ne klasifikimin e Shpenzimeve sipas Natyres )
B5: Nr | C5: Pershkrimi i Elementeve | F5: Periudha | G5: Periudha
F6: Raportuese | G6: Para ardhese
B7: 1 | C7: Shitjet neto | F7: 0 | G7: 0
B8: 2 | C8: Te ardhura te tjera nga veprimtaria e shfrytezimit
B9: 3 | C9: Ndrysh.ne invent.prod.gatshme e prodhimit ne proces
B10: 4 | C10: Materialet e konsumuara | F10: 594713
B11: 5 | C11: Kosto e punes | F11: =SUM(F12:F13) -> 10632797 | G11: 7274713
D12: Pagat e personelit | F12: 10075100 | G12: 6820200
D13: Shpenzimet per sigurime shoqerore e shendetesore | F13: 557697 | G13: 454513
B14: 6 | C14: Amortizimet dhe zhvleresimet
B15: 7 | C15: Shpenzime te tjera | F15: =12836240.38+42412.3+7700 -> 12886352.68 | G15: 15690525.75
B16: 8 | C16: Totali shpenzimeve ( shumat 4 - 7 ) | F16: =F10+F11+F14+F15 -> 24113862.68 | G16: 22965238.75
B17: 9 | C17: Fitimi (humbja) nga veprimtarite e kryesore (1+2+/-3-8) | F17: =+F7+F8+F9-F16 -> -24113862.68 | G17: -22965238.75
B18: 10 | C18: Te ardhurat dhe shpenzimet financiare nga njesite e kontrolluara | F18: 0 | G18: 0
B19: 11 | C19: Te ardhurat dhe shpenzimet financiare nga pjesemarrjet | F19: 0 | G19: 0
B20: 12 | C20: Te ardhurat dhe shpenzimet financiare
C21: 121 | D21: Te ardh.e shpenz. financ.nga inves.te tjera financ.afatgjata
C22: 122 | D22: Te ardhurat dhe shpenzimet nga interesat | F22: =102.76-32880845.42 -> -32880742.66 | G22: -22440710.73
C23: 123 | D23: Te ardhurat dhe shpenzimet nga kembimi | G23: -1172.76
C24: 124 | D24: Te ardhura dhe shpenzime te tjera financiare
B25: 13 | C25: Totali i te Ardhurave dhe Shpenzimeve financiare | F25: =SUM(F18:F24) -> -32880742.66 | G25: -22441883.49
B26: 14 | C26: Fitimi (humbja) para tatimit ( 9 +/- 13 ) | F26: =F17+F25 -> -56994605.34 | G26: -45407122.24
B27: 15 | C27: Shpenzimet e tatimit mbi fitimin
B28: 16 | C28: Fitimi (humbja) neto e vitit financiar ( 14 - 15 ) | F28: =F26-F27 -> -56994605.34 | G28: -45407122.24
B29: 17 | C29: Elementet e pasqyrave te konsoliduara

Sheet Fluksi 2
B3: Pasqyra e Fluksit Monetar - Metoda Indirekte 2010
B5: Nr | C5: Pasqyra e fluksit monetar - Metoda Indirekte | F5: Periudha | G5: Periudha
F6: Raportuese | G6: Para ardhese
C7: Fluksi i parave nga veprimtaria e shfrytezimit
D8: Fitimi para tatimit | F8: =Rez.1!F26 -> -56994605.34 | G8: -45407122.24
D9: Rregullime per :
E10: Amortizimin
E11: Humbje nga kembimet valutore
E12: Te ardhura nga Investimet
E13: Shpenzime per interesa
D14: Rritje/renie ne tepricen e kerkesave te arketueshme | F14: =Aktivet!H13-Aktivet!G13+Aktivet!H14-Aktivet!G14 -> -16245851.29 | G14: -11644408
D15: nga aktiviteti,si dhe kerkesave te arketueshme te tjera
D16: Rritje/renie ne Tepricen e inventarit | F16: =Aktivet!H20-Aktivet!G20 -> -116389742.8 | G16: -49251470
D17: Rritje/renie ne tepricen e detyrimeve ,per tu paguar | F17: =Pasivet!G12-Pasivet!H12 -> -36442900.27 | G17: -7121576
D18: nga aktiviteti
D19: MM te perfituara nga aktivitetet | F19: =SUM(F8:F18) -> -226073099.7 | G19: =SUM(G8:G18) -> -113424576.2
D20: Interesi i paguar
D21: Tatim mbi fitimin i paguar | G21: 4300259
D22: MM neto nga aktivitetet e shfrytezimit | F22: =SUM(F19:F21) -> -226073099.7 | G22: =G19+G21 -> -109124317.2
C23: Fluksi monetar nga veprimtarite investuese
D24: Blerja e njesisese kontrolluar X minus parate e Arketuara
D25: Blerja e aktiveve afatgjata materiale | F25: =Pasivet!G21-Pasivet!H21 -> -18465414.46 | G25: 25395200
D26: Te ardhura nga shitja e paisjeve
D27: Interesi i arketuar
D28: Dividentet e arketuar
D29: MM neto te perdoruara ne veprimtarite investuese | F29: =SUM(F24:F28) -> -18465414.46 | G29: =SUM(G24:G28) -> 25395200
C30: Fluksi monetar nga aktivitetet financiare
D31: Te ardhura nga emetimi i kapitalit aksioner
D32: Te ardhura nga huamarrje afatgjata | F32: =Pasivet!G9-Pasivet!H9-3164619 -> 247346962.4 | G32: 26383923
D33: Pagesat e detyrimive te qerase financiare | G33: =57179498+637560+165696 -> 57982754
D34: Dividente te paguar
D35: MM neto e perdorur ne veprimtarite Financiare | F35: =SUM(F31:F34) -> 247346962.4 | G35: =SUM(G32:G34) -> 84366677
C36: Rritja/Renia neto e mjeteve monetare | F36: =F22+F29+F35 -> 2808448.3 | G36: =G22+G29+G35 -> 637559.76
C37: Mjetet monetare ne fillim te periudhes kontabel | F37: =G38 -> 2618716.76 | G37: 1981157
C38: Mjetet monetare ne fund te periudhes kontabel | F38: =F36+F37 -> 5427165.06 | G38: =G36+G37 -> 2618716.76

Sheet Kapitali 2
A4: Pasqyra e Ndryshimeve ne Kapital 2010
B6: Nje pasqyre e pa Konsoliduar
C8: Kapitali aksionar | D8: Primi aksionit | E8: Aksione thesari | F8: Rezerva stat.ligjore | G8: Fitimi pashperndare | H8: TOTALI
A9: I | B9: Pozicioni me 31 dhjetor 2008 | C9: 100000 | G9: -124724990 | H9: =SUM(C9:G9) -> -124624990
A10: A | B10: Efekti ndryshimeve ne politikat kontabel | C10: 0 | H10: =SUM(C10:G10) -> 0
A11: B | B11: Pozicioni i rregulluar | C11: =SUM(C9:C10) -> 100000 | D11: 0 | E11: 0 | F11: 0 | G11: -124724990 | H11: -124624990
A12: 1 | B12: Fitimi neto per periudhen kontabel | G12: =Rez.1!G28 -> -45407122.24 | H12: =SUM(C12:G12) -> -45407122.24
A13: 2 | B13: Dividentet e paguar | H13: 0
A14: 3 | B14: Rritja rezerves kapitalit | H14: 0
A15: 4 | B15: Emetimi aksioneve | H15: 0
A16: II | B16: Pozicioni me 31 dhjetor 2009 | C16: =SUM(C11:C15) -> 100000 | D16: =SUM(D11:D15) -> 0 | E16: =SUM(E11:E15) -> 0 | F16: =SUM(F11:F15) -> 0 | G16: =SUM(G11:G15) -> -170132112.2 | H16: -170032112.2
A17: 1 | B17: Fitimi neto per periudhen kontabel | G17: =Pasivet!G43 -> -56994605.34 | H17: -56994605.34
A18: 2 | B18: Dividentet e paguar | H18: 0
A19: 3 | B19: Emetimi kapitali aksionar | H19: 0
A20: 4 | B20: Aksione te thesari te riblera | H20: 0
A21: III | B21: Pozicioni me 31 dhjetor 2010 | C21: =SUM(C16:C20) -> 100000 | D21: 0 | E21: 0 | F21: 0 | G21: -227126717.6 | H21: -227026717.6

Sheet Pasq.per AAM 1
B2: ____________
B4: Aktivet Afatgjata Materiale 2009
A6: Nr | B6: Emertimi | C6: Sasia | D6: Gjendje | E6: Shtesa | F6: Pakesime | G6: Gjendje
D7: 1 Janar | G7: 31 Dhjetor
A8: 1 | B8: Toka,terrene | G8: =D8+E8-F8 -> 0
A9: 2 | B9: Instalime tek, mak,paj | G9: 0
A10: 3 | B10: Te tjera AAM | D10: =88517.2+1233936+3345010-1260432 -> 3407031.2 | E10: 123717 | G10: 3530748.2
A11: 4 | G11: 0
A12: 5 | G12: 0
A13: 1 | G13: 0
A14: 2 | G14: 0
A15: 3 | G15: 0
A16: 4 | G16: 0
B17: TOTALI | D17: =SUM(D8:D16) -> 3407031.2 | E17: =SUM(E8:E16) -> 123717 | F17: =SUM(F8:F16) -> 0 | G17: =SUM(G8:G16) -> 3530748.2
B20: Amortizimi A.A.Materiale 2009
A22: Nr | B22: Emertimi | C22: Sasia | D22: Gjendje | E22: Shtesa | F22: Pakesime | G22: Gjendje
D23: 1 Janar | G23: 31 Dhjetor
A24: 1 | B24: Toka,terrene | G24: =D24+E24-F24 -> 0
A25: 2 | B25: Instalime tek, mak,paj | G25: 0
A26: 3 | B26: Te tjera AAM | G26: 0
A27: 4 | G27: 0
A28: 5 | G28: 0
A29: 1 | G29: 0
A30: 2 | G30: 0
A31: 3 | G31: 0
A32: 4 | G32: 0
B33: TOTALI | D33: =SUM(D24:D32) -> 0 | E33: =SUM(E24:E32) -> 0 | G33: =SUM(G24:G32) -> 0
B36: Vlera Kontabel Neto e A.A.Materiale 2009
A38: Nr | B38: Emertimi | C38: Sasia | D38: Gjendje | E38: Shtesa | F38: Pakesime | G38: Gjendje
D39: 1 Janar | G39: 31 Dhjetor
A40: 1 | B40: Toka,terrene | D40: =+D8+D24 -> 0 | E40: 0 | F40: =+F8+F24 -> 0 | G40: =D40+E40-F40 -> 0
A41: 2 | B41: Instalime tek, mak,paj | D41: 0 | E41: 0 | F41: =+F9+F25 -> 0 | G41: 0
A42: 3 | B42: Te tjera AAM | D42: 3407031.2 | E42: 123717 | F42: =+F10+F26 -> 0 | G42: 3530748.2
A43: 4 | G43: 0
A44: 5 | G44: 0
A45: 1 | G45: 0
A46: 2 | G46: 0
A47: 3 | G47: 0
A48: 4 | G48: 0
B49: TOTALI | D49: =SUM(D40:D48) -> 3407031.2 | E49: =SUM(E40:E48) -> 123717 | F49: =SUM(F40:F48) -> 0 | G49: =SUM(G40:G48) -> 3530748.2

Sheet Shenimet
B4: S H E N I M E T S P J E G U E S E
C5: Sqarim:
D6: Dhënia e shënimeve shpjeguese në këtë pjesë është e detyrueshme sipas SKK 2.
D7: Plotesimi i te dhenave të kësaj pjese duhet të bëhet sipas kërkesave dhe strukturës standarte te
C8: percaktuara ne SKK 2 dhe konkretisht paragrafeve 49-55. Rradha e dhenies se spjegimeve duhet te jete :
E9: a) Informacion i përgjithsëm dhe politikat kontabël
E10: b)Shënimet qe shpjegojnë zërat e ndryshëm të pasqyrave financiare
E11: c) Shënime të tjera shpjegeuse
C19: V0, | E19: Shif shenimet bashkangjitur bilancit

Sheet Shen.Spjeg.faqa 1
B3: S H E N I M E T S P J E G U E S E
C4: Sqarim:
D5: Dhënia e shënimeve shpjeguese në këtë pjesë është e detyrueshme sipas SKK 2.
D6: Plotesimi i te dhenave të kësaj pjese duhet të bëhet sipas kërkesave dhe strukturës standarte te
C7: percaktuara ne SKK 2 dhe konkretisht paragrafeve 49-55. Rradha e dhenies se spjegimeve eshte :
D8: a) Informacion i përgjithsëm dhe politikat kontabël
D9: b)Shënimet qe shpjegojnë zërat e ndryshëm të pasqyrave financiare
D10: c) Shënime të tjera shpjegeuse
C12: A I | D12: Informacion i përgjithshëm
C14: 1 | D14: Kuadri ligjor: Ligji 9228 dt 29.04.2004 "Per Kontabilitetin dhe Pasqyrat Financiare"
C15: 2 | D15: Kuadri kontabel i aplikuar : Standartet Kombetare te Kontabilitetit ne Shqiperi.
C16: 3 | D16: Baza e pergatitjes se PF : Te drejtat dhe detyrimet e konstatuara.
C17: 4 | D17: Parimet dhe karakteristikat cilesore te perdorura per hartimin e P.F. :
D18: a) NJESIA EKONOMIKE RAPORTUSE ka mbajtur ne llogarite e saj aktivet,pasivet dhe
C19: transaksionet ekonomike te veta.
D20: b) VIJIMESIA e veprimtarise ekonomike te njesise sone raportuse eshte e siguruar duke
C21: mos pasur ne plan ose nevoje nderprerjen e aktivitetit te saj.
D22: c) KOMPENSIM midis nje aktivi dhe nje pasivi nuk ka , ndersa midis te ardhurave dhe
C23: shpenzimeve ka vetem ne rastet qe lejohen nga SKK.
D24: d) KUPTUSHMERIA e Pasqyrave Financiare eshte realizuar ne masen e plote per te
C25: qene te qarta dhe te kuptushme per perdorues te jashtem qe kane njohuri te pergjitheshme te
C26: mjaftueshme ne fushen e kontabilitetit.
D27: e) MATERIALITETI eshte vleresuar nga ana jone dhe ne baze te tij Pasqyrat Financiare
C28: jane hartuar vetem per zera materiale.
D29: f) BESUSHMERIA per hartimin e Pasqyrave Financiare eshte e siguruar pasi nuk ka
C30: gabime materiale duke zbatuar parimet e meposhteme :
D31: - Parimin e paraqitjes me besnikeri
D32: - Parimin e perparesise se permbajtjes ekonomike mbi formen ligjore
D33: - Parimin e paaneshmerise pa asnje influencim te qellimshem
D34: - Parimin e maturise pa optimizem te teperuar,pa nen e mbivleresim te qellimshem
D35: - Parimin e plotesise duke paraqitur nje pamje te vertete e te drejte te PF.
D36: - Parimin e qendrushmerise per te mos ndryshuar politikat e metodat kontabel
D37: - Parimin e krahasushmerise duke siguruar krahasimin midis dy periudhave.
C39: A II | D39: Politikat kontabël
D41: Per percaktimin e kostos se inventareve eshte zgjedhur metoda "FIFO" ( hyrje e pare ,
C42: dalje e pare.
D43: Vleresimi fillestar i nje elementi te AAM qe ploteson kriteret per njohje si aktiv ne bilanc
C44: eshte vleresuar me kosto.
D45: Blerja dhe krijimi i AAM gjate periudhes ushtrimore eshte financur nga veprimtaria rrjedhese e
C46: shoqerise, dhe vleresimi eshte bere koston faktike.
D47: Per vleresimi i mepaseshem i AAM eshte zgjedhur modeli i kostos duke i paraqitur ne
C48: bilanc me kosto minus amortizimin e akumuluar.
D49: Per llogaritjen e amortizimit te AAM (SKK 5: 38) njesia jone ekonomike ka percaktuar
C50: si metode te amortizimit per AAM qe ka ne pronesi te saj metoden e amortizimit mbi bazen e vleres se
C51: mbetur ndersa normat e amortizimit jane perdorur te njellojta me ato te sistemit fiskal ne fuqi dhe
C52: konkretisht :
D53: - Per ndertesat me 5 % ne vit mbi vleren e mbetur
D54: - Kompjutera e sisteme informacioni me 25 % te vleftes se mbetur
D55: - Te gjitha AAM te tjera me 20 % te vleftes se mbetur
D56: Per llogaritjen e amortizimit te AAJM (SKK 5: 59) njesia ekonomike raportuese ka
C57: percaktuar si metode te amortizimit metoden lineare ndersa normen e amortizimit me 15 % ne vit.
E60: 1

Sheet Shen.Spjeg.ne vazhdim
C3: Ref.
B4: S H E N I M E T S P J E G U E S E
D6: B | F6: Shënimet qe shpjegojnë zërat e ndryshëm të pasqyrave financiare
E8: I | F8: AKTIVET AFAT SHKURTERA
E10: 1 | F10: Aktivet monetare
C11: 3 | F11: Banka
E12: Nr | F12: Emri i Bankes | H12: Monedha | I12: Nr llogarise | K12: Vlera ne | L12: Kursi | M12: Vlera ne
K13: valute | L13: fund vitit | M13: leke
E14: 1 | F14: Banka | H14: LEK | M14: =+Aktivet!G8 -> 3687004.45
E15: 2 | H15: EUR | L15: 123.8
M18: =SUM(M14:M17) -> 3687004.45
F19: Totali
C20: 4 | F20: Arka
E21: Nr | F21: E M E R T I M I | K21: Vlera ne | L21: Kursi | M21: Vlera ne
K22: valute | L22: fund vitit | M22: leke
F23: Arka ne Leke | M23: =+Aktivet!G9 -> 1740160.87
M26: =SUM(M23:M25) -> 1740160.87
F27: Totali
C30: 5 | E30: 2 | F30: Derivative dhe aktive te mbajtura per tregtim
G31: Shoqeria nuk ka derivative dhe aktive te mbajtura per tregtim
C33: 6 | E33: 3 | F33: Aktive te tjera financiare afatshkurtra
C35: 7 | E35: > | F35: Kliente per mallra,produkte e sherbime
F36: Fatura gjithsej | I36: Nr | K36: Leke | L36: =L37+L42 -> 0
F37: a) Nga keto | I37: Nr | K37: Leke | L37: =SUM(L38:L41) -> 0
F38: pa likuiduara deri ne 30 dite | I38: Nr | K38: Leke
F39: pa likuiduara deri ne 60 dite | I39: Nr | K39: Leke | L39: =+Aktivet!G13 -> 0
F40: pa likuiduara deri ne 90 dite | I40: Nr | K40: Leke
F41: pa likuiduara permbi nje vit | I41: Nr | K41: Leke
F42: b) Nga faturat gjithsej | I42: Nr | K42: Leke
F43: Fatura mbi 300 mije leke te prera | I43: Nr | K43: Leke
F44: Fatura mbi 300 mije leke te likuid. | I44: Nr | K44: Leke
C46: 8 | E46: > | F46: Debitore,Kreditore te tjere | K46: Leke | L46: 61657752
C48: 9 | E48: > | F48: Tatim mbi fitimin | L48: =-L51+L53+L49 -> 5646533
G49: Tatimi i derdhur paradhenie | K49: Leke | L49: 400000
G50: Tatimi i vitit ushtrimor | K50: Leke
G51: Tatimi i derdhur teper | K51: Leke
G52: Tatim rimbursuar | K52: Leke
G53: Tatim nga viti kaluar | K53: Leke | L53: 5246533
C54: 10 | E54: > | F54: Tvsh
G55: Tvsh e zbriteshme ne celje te vitit | K55: Leke | L55: 0
G56: Tvsh e zbriteshme ne Blerje gjate vitit | K56: Leke | L56: 19294743
G57: Tvsh e pagueshme ne shitje gjate vitit | K57: Leke
G58: Tvsh e zbriteshme ne mbyllje te vitit | K58: Leke | L58: =+Aktivet!G16 -> 19294743
C61: 11 | E61: > | F61: Te drejta e detyrime ndaj ortakeve | K61: Leke
C63: 12 | E63: > | K63: Nuk ka
C65: 13 | E65: > | K65: Nuk ka
C67: 14 | E67: 4 | F67: Inventari
C69: 15 | E69: > | F69: Lendet e para | K69: Leke | L69: =+Aktivet!G21 -> 86985830.12
C71: 16 | E71: > | F71: Inventari Imet | K71: Nuk ka
C73: 17 | E73: > | F73: Prodhim ne proces | K73: Leke | L73: 424814040
C75: 18 | E75: > | F75: Produkte te gatshme | K75: Nuk ka | L75: =+Aktivet!G24 -> 0
C77: 19 | E77: > | F77: Mallra per rishitje | K77: Nuk ka | L77: =+Aktivet!G25 -> 0
C79: 20 | E79: > | F79: Parapagesa per furnizime | K79: Nuk ka
C81: 21 | E81: >
C83: 22 | E83: 5 | F83: Aktive biologjike afatshkurtra | K83: Nuk ka
C85: 23 | E85: 6 | F85: Aktive afatshkurtra te mbajtura per rishitje | K85: Nuk ka
C87: 24 | E87: 7 | F87: Parapagime dhe shpenzime te shtyra | K87: Nuk ka
C89: 25 | E89: > | F89: Shpenzime te periudhave te ardhshme | K89: Nuk ka
C91: 26 | E91: > | K91: Nuk ka
C93: 27 | E93: II | F93: AKTIVET AFATGJATA
C95: 28 | E95: 1 | F95: Investimet financiare afatgjata | K95: Nuk ka
C97: 29 | E97: 2 | F97: Aktive afatgjata materiale
G99: Analiza e posteve te amortizushme
E100: Nr | F100: Emertimi | G100: Viti raportues | J100: Viti paraardhes
G101: Vlera | H101: Amortizimi | I101: Vl.mbetur | J101: Vlera | K101: Amortizimi | L101: Vl.mbetur
C102: 30 | F102: Toka | I102: =G102-H102 -> 0
C103: 31 | F103: Ndertesa | I103: =G103-H103 -> 0
C104: 32 | F104: Inst.maki,paisje | G104: =G105+G106+G107 -> 0 | H104: 0 | I104: 0 | J104: 0 | K104: 0 | L104: 0
F105: Makineri,paisje | I105: =G105-H105 -> 0 | L105: =J105-K105 -> 0
F106: Mjete transporti | I106: =G106-H106 -> 0 | L106: =J106-K106 -> 0
F107: Instrumenta dhe | I107: =G107-H107 -> 0 | L107: =J107-K107 -> 0
C108: 33 | F108: Paisje zyre info. | G108: =Aktivet!G41 -> 3530748.2 | I108: =G108-H108 -> 3530748.2 | J108: 3530748.2 | L108: 3530748.2
F110: Totali | G110: =G102+G103+G104+G108 -> 3530748.2 | H110: 0 | I110: 3530748.2 | J110: 3530748.2 | K110: 0 | L110: 3530748.2
L111: =Aktivet!G37 -> 3530748.2
C113: 34 | E113: 3 | F113: Ativet biologjike afatgjata | K113: Nuk ka
C115: 35 | E115: 4 | F115: Aktive afatgjata jo materiale | K115: Nuk ka | L115: =+Aktivet!G43 -> 0
C117: 36 | E117: 5 | F117: Kapitali aksioner i pa paguar | K117: Nuk ka
C119: 37 | E119: 6 | F119: Aktive te tjera afatgjata | K119: Nuk ka
E121: I | F121: PASIVET AFATSHKURTRA
C123: 40 | E123: 1 | F123: Derivativet | K123: Nuk ka
C125: 41 | E125: 2 | F125: Huamarjet | K125: Nuk ka
C127: 42 | E127: > | F127: Overdraftet bankare | K127: Leke | L127: 638279178
C129: 43 | E129: > | F129: Huamarrje afat shkuatra | K129: Nuk ka
C131: 44 | E131: 3 | F131: Huat dhe parapagimet | K131: Nuk ka
C133: 45 | E133: > | F133: Te pagueshme ndaj furnitoreve
F134: Fatura gjithsej | I134: Nr | K134: Leke | L134: =+L135+L140 -> 0
F135: a) Nga keto | I135: Nr | K135: Leke | L135: =SUM(L136:L139) -> 0
F136: pa likuiduara deri ne 30 dite | I136: Nr | K136: Leke
F137: pa likuiduara deri ne 60 dite | I137: Nr | K137: Leke | L137: =+Pasivet!G12 -> 0
F138: pa likuiduara deri ne 90 dite | I138: Nr | K138: Leke
F139: pa likuiduara permbi nje vit | I139: Nr | K139: Leke
F140: b) Nga faturat gjithsej | I140: Nr | K140: Leke | L140: =SUM(L141:L142) -> 0
F141: Fatura mbi 300 mije leke te kontab. | I141: Nr | K141: Leke
F142: Fatura mbi 300 mije leke te likuid. | I142: Nr | K142: Leke
C144: 46 | E144: > | F144: Te pagueshme ndaj punonjesve | K144: Leke | L144: =+Pasivet!G13 -> 823675.73
C146: 47 | E146: > | F146: Detyrime per Sigurime Shoq.Shend. | K146: Leke | L146: =+Pasivet!G14 -> 0
C148: 48 | E148: > | F148: Detyrime tatimore per TAP-in | K148: Leke | L148: =+Pasivet!G15 -> 39999
C150: 49 | E150: > | F150: Detyrime tatimore per Tatim Fitimin | K150: Leke
C152: 50 | E152: > | F152: Detyrime tatimore per Tvsh-ne | K152: Leke
C154: 51 | E154: > | F154: Detyrime tatimore per Tatimin ne Burim (qera) | K154: Leke | L154: 7065119
C156: 52 | E156: > | F156: Te drejta e detyrime ndaj ortakeve | K156: Leke | L156: =+Pasivet!G19 -> 181245770.8
C158: 53 | E158: > | F158: Dividente per tu paguar | K158: Nuk ka
C160: 54 | E160: > | F160: Debitore dhe Kreditore te tjere | K160: Leke | L160: =6929786 -> 6929786
C163: 55 | E163: 4 | F163: Grantet dhe te ardhurat e shtyra | K163: Nuk ka
C165: 56 | E165: 5 | F165: Provizionet afatshkurtra | K165: Nuk ka
E167: II | F167: PASIVET AFATGJATA | K167: Nuk ka
C169: 58 | E169: 1 | F169: Huat afatgjata | K169: Nuk ka
C171: 59 | E171: > | F171: Hua,bono dhe detyrime nga qeraja financiare | K171: Nuk ka
C173: 60 | E173: > | F173: Bono te konvertueshme | K173: Nuk ka
C175: 61 | E175: 2 | F175: Huamarje te tjera afatgjata | K175: Nuk ka | L175: =+Pasivet!G25 -> 0
C177: 62 | E177: 3 | F177: Grantet dhe te ardhurat e shtyra | K177: Nuk ka
C179: 63 | E179: 4 | F179: Provizionet afatgjata | K179: Nuk ka
E182: III | F182: KAPITALI
C184: 66 | E184: 1 | F184: Aksionet e pakices (PF te konsoliduara) | K184: Nuk ka
C186: 67 | E186: 2 | F186: Kapitali aksionereve te shoq.meme (PF te kons.) | K186: Nuk ka
C188: 68 | E188: 3 | F188: Kapitali aksionar | K188: Leke | L188: =+Pasivet!G36 -> 100000
C190: 69 | E190: 4 | F190: Primi aksionit | K190: Nuk ka
C192: 70 | E192: 5 | F192: Njesite ose aksionet e thesarit (Negative) | K192: Nuk ka
C194: 71 | E194: 6 | F194: Rezervat statutore | K194: Nuk ka
C196: 72 | E196: 7 | F196: Rezervat ligjore | K196: Nuk ka | L196: =+Pasivet!G40 -> 0
C198: 73 | E198: 8 | F198: Rezervat e tjera | K198: Nuk ka
C200: 74 | E200: 9 | F200: Fitimet e pa shperndara | K200: Leke | L200: =+Pasivet!G42 -> -170132112
C202: 75 | E202: 10 | F202: Fitimi (Humbja) e vitit financiar | K202: Leke | L202: =Rez.1!F26 -> -56994605.34
F204: ● | G204: Fitimi i ushtrimit | K204: Leke | L204: -59729403.62
F205: ● | G205: Shpenzime te pa zbriteshme | K205: Leke | L205: 2734799
F206: ● | G206: Fitimi para tatimit | K206: Leke | L206: =L204+L205 -> -56994604.62
F207: ● | G207: Tatimi mbi fitimin | K207: Leke
D210: C | F210: Shënime të tjera shpjegeuse
F212: Ngjarje te ndodhura pas dates se bilancit per te cilat behen rregullime apo ngjarje te
E213: ndodhura pas dates se bilancit per te cilat nuk behen rregulline nuk ka.
F214: Gabime materiale te ndodhura ne periudhat kontabel te mepareshme te konstatuara gjate
E215: periudhes rraportuese dhe qe korigjim nuk ka.
I219: Per Drejtimin e Njesise Ekonomike
I220: ( GJON RADOVANI )
